fUST/lending_fUST_20240110
["ID","MTS","AMOUNT","RATE_DAILY","PERIOD"]
[310973157,1704838253839,-500.0,0.0003589,2]
[310973159,1704838253849,-500.0,0.0003589,2]
[310973161,1704838253858,-500.0,0.0003589,2]
[310973163,1704838253867,-500.0,0.0003589,2]
[310973165,1704838253877,-500.0,0.0003589,2]
[310973167,1704838253887,-1000.0,0.0003589,2]
[310973169,1704838253896,-500.0,0.0003589,2]
[310973171,1704838253905,-500.0,0.0003589,2]
[310973173,1704838253914,-1425.09,0.0003589,2]
[310973174,1704838253923,-598.01736751,0.0003589,2]
[310973176,1704838253934,-518.29,0.0003589,2]
[310973178,1704838253943,-500.0,0.0003589,2]
[310973180,1704838253954,-500.0,0.0003589,2]
[310973182,1704838253963,-500.0,0.0003589,2]
[310973184,1704838253974,-500.0,0.0003589,2]
[310973186,1704838253983,-500.0,0.0003589,2]
[310973188,1704838253993,-576.31,0.0003589,2]
[310973190,1704838254002,-2345.66,0.0003589,2]
[310973192,1704838254011,-500.0,0.0003589,2]
[310973194,1704838254020,-198.33671116,0.0003589,2]
[310973196,1704838254030,-623.88810323,0.0003589,2]
[310973198,1704838254041,-383.50340479,0.0003589,2]
[310973200,1704838254051,-506.46641291,0.0003589,2]
[310973202,1704838254060,-500.0,0.0003589,2]
[310973204,1704838254070,-640.72,0.0003589,2]
[310973206,1704838254080,-500.0,0.0003589,2]
[310973208,1704838254089,-466.66908188,0.0003589,2]
[310973210,1704838254099,-759.58,0.0003589,2]
[310973212,1704838254108,-268.25266853,0.0003589,2]
[310973214,1704838254118,-500.0,0.0003589,2]
[310973216,1704838254128,-500.0,0.0003589,2]
[310973218,1704838254138,-500.0,0.0003589,2]
[310973220,1704838254147,-500.0,0.0003589,2]
[310973222,1704838254156,-500.0,0.0003589,2]
[310973224,1704838254165,-2715.47,0.0003589,2]
[310973226,1704838254175,-500.0,0.0003589,2]
[310973228,1704838254185,-500.0,0.0003589,2]
[310973230,1704838254194,-500.0,0.0003589,2]
[310973232,1704838254204,-500.0,0.0003589,2]
[310973234,1704838254216,-596.35,0.0003589,2]
[310973236,1704838254225,-500.0,0.0003589,2]
[310973238,1704838254235,-500.0,0.0003589,2]
[310973240,1704838254244,-500.0,0.0003589,2]
[310973242,1704838254255,-500.0,0.0003589,2]
[310973244,1704838254264,-500.0,0.0003589,2]
[310973246,1704838254273,-500.0,0.0003589,2]
[310973248,1704838254282,-500.0,0.0003589,2]
[310973250,1704838254296,-1800.44,0.0003589,2]
[310973252,1704838254306,-500.0,0.0003589,2]
[310973254,1704838254316,-215.42859924,0.0003589,2]
[310973256,1704838254325,-500.0,0.0003589,2]
[310973258,1704838254334,-916.6,0.0003589,2]
[310973260,1704838254343,-500.0,0.0003589,2]
[310973262,1704838254352,-500.0,0.0003589,2]
[310973264,1704838254361,-567.99462303,0.0003589,2]
[310973266,1704838254370,-518.22,0.0003589,2]
[310973267,1704838254379,-500.0,0.0003589,2]
[310973269,1704838254389,-500.0,0.0003589,2]
[310973271,1704838254402,-500.0,0.0003589,2]
[310973274,1704838254412,-500.0,0.0003589,2]
[310973275,1704838254421,-500.0,0.0003589,2]
[310973277,1704838254431,-500.0,0.0003589,2]
[310973279,1704838254441,-600.0,0.0003589,2]
[310973281,1704838254450,-500.36967347,0.0003589,2]
[310973283,1704838254460,-500.0,0.0003589,2]
[310973285,1704838254469,-500.79142979,0.0003589,2]
[310973287,1704838254478,-500.0,0.0003589,2]
[310973289,1704838254488,-523.71767988,0.0003589,2]
[310973291,1704838254497,-500.0,0.0003589,2]
[310973293,1704838254507,-500.0,0.0003589,2]
[310973295,1704838254516,-500.0,0.0003589,2]
[310973297,1704838254525,-500.0,0.0003589,2]
[310973299,1704838254538,-500.0,0.0003589,2]
[310973301,1704838254548,-602.35960015,0.0003589,2]
[310973303,1704838254556,-500.0,0.0003589,2]
[310973305,1704838254565,-500.0,0.0003589,2]
[310973307,1704838254574,-500.0,0.0003589,5]
[310973309,1704838254583,-500.0,0.0003589,2]
[310973311,1704838254592,-500.0,0.0003589,2]
[310973313,1704838254601,-500.0,0.0003589,2]
[310973315,1704838254611,-1501.72,0.0003589,2]
[310973317,1704838254620,-2005.2,0.0003589,2]
[310973319,1704838254629,-578.75542968,0.0003589,2]
[310973321,1704838254639,-523.96387343,0.0003589,2]
[310973323,1704838254648,-500.0,0.0003589,2]
[310973325,1704838254658,-500.0,0.0003589,2]
[310973327,1704838254667,-500.0,0.0003589,2]
[310973329,1704838254676,-752.82,0.0003589,2]
[310973331,1704838254686,-500.0,0.0003589,2]
[310973333,1704838254695,-500.0,0.0003589,2]
[310973335,1704838254704,-530.61899868,0.0003589,2]
[310973337,1704838254714,-500.0,0.0003589,2]
[310973339,1704838254723,-500.0,0.0003589,2]
[310973341,1704838254732,-1026.35,0.0003589,2]
[310973343,1704838254742,-500.0,0.0003589,2]
[310973344,1704838254751,-519.36,0.0003589,2]
[310973346,1704838254761,-500.0,0.0003589,2]
[310973349,1704838254771,-500.0,0.0003589,2]
[310973350,1704838254780,-500.0,0.0003589,2]
[310973352,1704838254793,-532.42179893,0.0003589,2]
[310973354,1704838254802,-500.0,0.0003589,2]
[310973356,1704838254811,-2510.57,0.0003589,2]
[310973357,1704838254821,-500.0,0.0003589,2]
[310973358,1704838254830,-535.05600543,0.0003589,2]
[310973359,1704838254839,-1602.28,0.0003589,2]
[310973360,1704838254848,-3910.65,0.0003589,2]
[310973361,1704838254859,-552.78766617,0.0003589,2]
[310973362,1704838254868,-667.15,0.0003589,2]
[310973363,1704838254878,-500.0,0.0003589,2]
[310973364,1704838254888,-500.0,0.0003589,2]
[310973365,1704838254897,-500.0,0.0003589,2]
[310973366,1704838254907,-626.56,0.0003589,2]
[310973367,1704838254917,-2102.7,0.0003589,2]
[310973368,1704838254927,-1251.26,0.0003589,2]
[310973369,1704838254937,-279.67823767,0.0003589,2]
[310973370,1704838254948,-1805.23,0.0003589,2]
[310973371,1704838254957,-500.0,0.0003589,2]
[310973372,1704838254967,-500.0,0.0003589,2]
[310973373,1704838254976,-9117.97,0.0003589,2]
[310973374,1704838254986,-733.66,0.0003589,2]
[310973375,1704838254996,-500.0,0.0003589,2]
[310973376,1704838255006,-500.0,0.0003589,2]
[310973377,1704838255015,-401.10576853,0.0003589,2]
[310973378,1704838255026,-505.56430784,0.0003589,2]
[310973379,1704838255035,-504.62093577,0.0003589,2]
[310973380,1704838255046,-6205.49,0.0003589,2]
[310973381,1704838255056,-5989.65,0.0003589,2]
[310973382,1704838255065,-3817.94,0.0003589,2]
[310973383,1704838255075,-500.0,0.0003589,2]
[310973384,1704838255085,-194.51994459,0.0003589,2]
[310973385,1704838255095,-500.0,0.0003589,2]
[310973386,1704838255104,-8612.74,0.0003589,2]
[310973387,1704838255114,-500.0,0.0003589,2]
[310973389,1704838255123,-1364.94,0.0003589,2]
[310973390,1704838255132,-48945.65,0.0003589,2]
[310973392,1704838255141,-565.22,0.0003589,2]
[310973394,1704838255151,-500.0,0.0003589,2]
[310973396,1704838255160,-18316.9,0.0003589,2]
[310973398,1704838255170,-362.47033602,0.0003589,2]
[310973400,1704838255179,-500.0,0.0003589,2]
[310973402,1704838255188,-500.0,0.0003589,2]
[310973404,1704838255197,-500.0,0.0003589,2]
[310973406,1704838255206,-500.0,0.0003589,2]
[310973408,1704838255216,-500.0,0.0003589,2]
[310973410,1704838255226,-2075.56,0.0003589,2]
[310973412,1704838255235,-500.0,0.0003589,2]
[310973414,1704838255245,-540.05,0.0003589,2]
[310973416,1704838255254,-500.0,0.0003589,2]
[310973418,1704838255263,-500.0,0.0003589,2]
[310973420,1704838255273,-527.26,0.0003589,2]
[310973422,1704838255283,-500.0,0.0003589,2]
[310973424,1704838255297,-500.0,0.0003589,2]
[310973426,1704838255307,-500.0,0.0003589,2]
[310973428,1704838255317,-500.0,0.0003589,2]
[310973430,1704838255326,-500.0,0.0003589,2]
[310973432,1704838255336,-500.0,0.0003589,2]
[310973434,1704838255346,-500.0,0.0003589,2]
[310973436,1704838255358,-540.34902769,0.0003589,2]
[310973438,1704838255368,-1000.81,0.0003589,2]
[310973440,1704838255379,-500.0,0.0003589,2]
[310973442,1704838255389,-710.07,0.0003589,2]
[310973444,1704838255399,-501.69840963,0.0003589,2]
[310973446,1704838255409,-500.0,0.0003589,2]
[310973448,1704838255418,-1827.27,0.0003589,2]
[310973450,1704838255428,-500.0,0.0003589,2]
[310973452,1704838255437,-193.20745123,0.0003589,2]
[310973454,1704838255447,-500.0,0.0003589,2]
[310973456,1704838255456,-503.7768482,0.0003589,2]
[310973458,1704838255466,-154.50041737,0.0003589,2]
[310973460,1704838255475,-500.0,0.0003589,2]
[310973462,1704838255485,-4457.98,0.0003589,2]
[310973464,1704838255495,-2180.01,0.0003589,2]
[310973466,1704838255504,-500.0,0.0003589,2]
[310973468,1704838255514,-500.0,0.0003589,2]
[310973470,1704838255524,-500.0,0.0003589,2]
[310973472,1704838255535,-500.0,0.0003589,2]
[310973474,1704838255547,-3035.53,0.0003589,2]
[310973485,1704838255649,-506.7169621,0.0003589,2]
[310973487,1704838255660,-2649.2,0.0003589,2]
[310973489,1704838255669,-500.0,0.0003589,2]
[310973491,1704838255678,-500.0,0.0003589,2]
[310973493,1704838255687,-500.0,0.0003589,2]
[310973495,1704838255696,-500.0,0.0003589,2]
[310973497,1704838255705,-607.29,0.0003589,2]
[310973499,1704838255714,-500.0,0.0003589,2]
[310973501,1704838255724,-500.0,0.0003589,2]
[310973503,1704838255733,-500.0,0.0003589,2]
[310973505,1704838255742,-920.26,0.0003589,2]
[310973507,1704838255752,-1421.67,0.0003589,2]
[310973509,1704838255761,-560.27805403,0.0003589,2]
[310973511,1704838255770,-500.0,0.0003589,2]
[310973513,1704838255779,-500.0,0.0003589,2]
[310973515,1704838255791,-500.0,0.0003589,2]
[310973517,1704838255800,-438.117232,0.0003589,2]
[310973519,1704838255810,-438.117232,0.0003589,2]
[310973521,1704838255819,-151.0,0.0003589,2]
[310973523,1704838255829,-151.0,0.0003589,2]
[310973525,1704838255839,-2000.0,0.000359,5]
[310973527,1704838255848,-1522.315738,0.000359,2]
[310973529,1704838255857,-2000.0,0.0003591,5]
[310973531,1704838255866,-2000.0,0.0003592,5]
[310973533,1704838255876,-2000.0,0.0003593,5]
[310973535,1704838255885,-2000.0,0.0003594,5]
[310973537,1704838255894,-2000.0,0.0003595,5]
[310973539,1704838255904,-2000.0,0.0003596,5]
[310973541,1704838255913,-1409.06122,0.00035965,2]
[310973543,1704838255922,-1409.06122,0.00035965,2]
[310973545,1704838255931,-95.91269095,0.00035965,7]
[310973562,1704838256095,-1260.69311586,0.00035965,7]
[310981111,1704838990879,168.27177466,0.00020377,7]
[310981113,1704839153294,-155.0,0.0001936,3]
[310981114,1704839153317,-260.53656778,0.0001936,2]
[310981115,1704839153340,-155.0,0.0001936,2]
[310981116,1704839153362,-3929.46343222,0.0001936,2]
[310981121,1704839324245,-164.20922315,0.00017413,2]
[310981122,1704839324277,-466.66922569,0.00017414,2]
[310981123,1704839324310,-155.0,0.00017415,3]
[310981124,1704839324341,-170.42946526,0.00017416,2]
[310981125,1704839324373,-4043.6920859,0.00017416,2]
[310981126,1704839324538,-5000.0,0.00017416,2]
[310981127,1704839324635,-5000.0,0.00017416,2]
[310981128,1704839324763,-5000.0,0.00017416,2]
[310981129,1704839324875,-612.20898113,0.00017416,2]
[310981130,1704839324909,-4387.79101887,0.00017416,2]
[310981131,1704839324982,-5000.0,0.00017416,2]
[310981132,1704839325076,-4301.41847854,0.00017416,2]
[310981133,1704839326821,698.58152146,0.00017415,2]
[310981134,1704839326854,5000.0,0.00017415,2]
[310981135,1704839326890,5000.0,0.00017415,2]
[310981136,1704839326923,5000.0,0.00017415,2]
[310981137,1704839327139,-178.5512054,0.00017415,2]
[310981138,1704839327185,-749.50865138,0.00017417,2]
[310981139,1704839327425,-197.49120248,0.00017417,2]
[310981140,1704839329488,708.26400384,0.00017413,2]
[310981144,1704839349540,-155.0,0.00017413,2]
[310981145,1704839349571,-520.21014079,0.00017413,2]
[310981146,1704839349761,-13.77979879,0.00017413,2]
[310981147,1704839353848,-5000.0,0.00017413,2]
[310981148,1704839353973,-5000.0,0.00017413,2]
[310981149,1704839354091,-278.07206696,0.00017413,2]
[310981150,1704839354125,-4721.92793304,0.00017413,2]
[310981151,1704839354196,-5000.0,0.00017413,2]
[310981152,1704839354301,-5000.0,0.00017413,2]
[310981153,1704839354582,-4139.77115429,0.00017413,2]
[310981154,1704839354614,-546.667706,0.00017413,2]
[310981155,1704839354648,-260.53656778,0.00017421,2]
[310981156,1704839354943,53.02457193,0.00017413,2]
[310981157,1704839354975,101.97542807,0.00017413,2]
[310981158,1704839355212,3211.33438873,0.00017413,2]
[310981159,1704839355889,1523.52499903,0.00017413,2]
[310981160,1704839357004,155.0,0.00017413,2]
[310981230,1704839360165,-5000.0,0.00017413,2]
[310981234,1704839360248,-210.03643091,0.00017413,2]
[310981265,1704839363537,-233.29828968,0.00017413,2]
[310981266,1704839363681,-4.76118959,0.00017413,2]
[310981267,1704839368364,-535.73435188,0.00017413,2]
[310981268,1704839368535,-10.93335412,0.00017413,2]
[310981269,1704839369214,524.80099776,0.00017413,2]
[310981270,1704839369245,535.73435188,0.00017413,2]
[310981271,1704839369276,535.73435188,0.00017413,2]
[310981272,1704839369735,-1043.72549573,0.00017413,2]
[310981273,1704839369838,-21.30052032,0.00017413,2]
[310981274,1704839369870,-1022.42497541,0.00017413,2]
[310981275,1704839369945,-5000.0,0.00017413,2]
[310981276,1704839370042,-3961.70011075,0.00017413,2]
[310981277,1704839370073,-166.63779338,0.00017413,2]
[310981278,1704839370950,225.77563987,0.00017413,2]
[310981279,1704839371521,645.886456,0.00017413,2]
[310981280,1704839371555,5000.0,0.00017413,2]
[310981281,1704839371587,5000.0,0.00017413,2]
[310981282,1704839371624,4045.77114605,0.00017413,2]
[310981283,1704839372096,-541.57800305,0.00017413,2]
[310981284,1704839372297,-11.05261231,0.00017413,2]
[310981285,1704839372544,234.7423567,0.00017413,2]
[310981286,1704839373010,155.24274967,0.00017413,2]
[310981287,1704839376198,-5000.0,0.00017413,2]
[310981288,1704839376361,-210.03643091,0.00017413,2]
[310981293,1704839388396,-535.12729712,0.00017413,2]
[310981295,1704839388682,-10.92096525,0.00017413,2]
[310981296,1704839390814,-672.68403925,0.00017421,2]
[310981297,1704839391103,-13.7282457,0.00017421,2]
[310981298,1704839394635,-5000.0,0.00017413,2]
[310981299,1704839394755,-210.03643091,0.00017413,2]
[310981300,1704839410711,-5000.0,0.00017413,2]
[310981301,1704839410923,-210.03643091,0.00017413,2]
[310981302,1704839426605,-271.0260992,0.00017413,2]
[310981303,1704839426830,-5.53114488,0.00017413,2]
[310981339,1704839432388,-155.0,0.00017422,3]
[310981340,1704839432397,-354.01145521,0.00018218,2]
[310981341,1704839432408,-2397.6326081,0.00018218,2]
[310981355,1704839437017,-1633.50864164,0.00018218,2]
[310981356,1704839437029,-614.84729505,0.00018218,2]
[310981357,1704839437039,-2029.47846271,0.00018219,2]
[310981358,1704839437049,-466.66922569,0.0001822,2]
[310981359,1704839437058,-708.26400384,0.00018221,2]
[310981360,1704839437068,-161.6668245,0.00018222,2]
[310981361,1704839437077,-23806.58799441,0.00018989,2]
[310981362,1704839437086,-4137.36387746,0.0001899,2]
[310981420,1704839439190,-4787.33425992,0.00018218,2]
[310981421,1704839439199,-78359.64515266,0.0001899,2]
[310981422,1704839439210,-15877.13272686,0.00018991,2]
[310981423,1704839439220,-10496.72843604,0.00018992,2]
[310981424,1704839439230,-270726.40319687,0.00018992,2]
[310981426,1704839439240,-3737.09785385,0.00018993,2]
[310981428,1704839439249,-36818.51868738,0.00018993,2]
[310981430,1704839439258,-686.41228495,0.00018993,2]
[310981432,1704839439267,-357.74402554,0.00018994,2]
[310981434,1704839439277,-2069.9093597,0.00018994,2]
[310981436,1704839439286,-1586.87251384,0.00018995,2]
[310981438,1704839439295,-1578.28669107,0.00019,2]
[310981440,1704839439304,-180.083072,0.00019178,2]
[310981442,1704839439313,-165.49712597,0.00019358,2]
[310981443,1704839439322,-170.42946526,0.00019358,2]
[310981445,1704839439332,-276.51691556,0.00019358,2]
[310981447,1704839439341,-10928.64732732,0.00019358,2]
[310981449,1704839439350,-967.51088436,0.00019358,2]
[310981451,1704839439359,-246.78231372,0.00019358,2]
[310981453,1704839439368,-266.27745965,0.00019359,2]
[310981454,1704839439377,-6171.41889349,0.00019359,2]
[310981455,1704839439386,-298.10141161,0.0001936,2]
[310981456,1704839439395,-1984.84032583,0.0001936,2]
[310981457,1704839439403,-182.37638103,0.0001936,2]
[310981458,1704839439413,-190.42389936,0.0001936,2]
[310981459,1704839439422,-24900.0,0.00019361,2]
[310981460,1704839439431,-1112.0110415,0.000195,2]
[310981461,1704839439440,-155.0,0.0002,2]
[310981462,1704839439449,-236.58553914,0.0002,2]
[310981463,1704839439458,-266.00114845,0.0002,2]
[310981464,1704839439466,-428.93135649,0.0002,2]
[310981465,1704839439475,-853.38318073,0.0002,2]
[310981466,1704839439483,-676.79171251,0.0002,2]
[310981467,1704839439492,-1194.83746505,0.0002,2]
[310981468,1704839439500,-2993.53442921,0.0002,2]
[310981469,1704839439509,-360.64707367,0.00020334,2]
[310981470,1704839439518,-312.91539313,0.00020334,2]
[310981471,1704839439526,-451.65400802,0.00020335,2]
[310981472,1704839439536,-2872.41512846,0.00020335,2]
[310981473,1704839439545,-606.52275476,0.00020335,2]
[310981474,1704839439565,-399.93081293,0.00020335,2]
[310981475,1704839439576,-7941.85502117,0.00020335,2]
[310981476,1704839439585,-300.0,0.00020377,2]
[310981477,1704839439595,-2079.14548292,0.00020377,2]
[310981478,1704839439604,-200.0,0.00020377,2]
[310981479,1704839439613,-179.370485,0.00020989,2]
[310981480,1704839439623,-326.6549607,0.00021,2]
[310981481,1704839439633,-166.666666,0.00021918,2]
[310981482,1704839439642,-4916.51301772,0.00022,2]
[310981483,1704839439652,-156.82833971,0.00022,2]
[310981484,1704839439661,-3927.64829251,0.00022,2]
[310981485,1704839439670,-166.666666,0.00022431,2]
[310981486,1704839439680,-166.666666,0.00022944,2]
[310981487,1704839439691,-2092.57766549,0.00023,2]
[310981488,1704839439701,-9918.08132345,0.00023,2]
[310981489,1704839439711,-166.666666,0.00023456,2]
[310981490,1704839439721,-166.666666,0.00023969,2]
[310981491,1704839439730,-166.666666,0.00024482,2]
[310981492,1704839439739,-783.16983902,0.00025,2]
[310981493,1704839439748,-3000.0,0.00025,2]
[310981494,1704839439757,-613.86507578,0.00025,2]
[310981495,1704839439766,-4709.99124251,0.00025,2]
[310981496,1704839439775,-978.88032498,0.000259,2]
[310981497,1704839439785,-525.7750246,0.00026,2]
[310981498,1704839439794,-154.87609912,0.00026865,2]
[310981499,1704839439803,-733.24734884,0.00027,2]
[310981501,1704839439812,-2934.79,0.00027397,3]
[310981502,1704839439822,-4582.18,0.00027397,3]
[310981503,1704839439831,-155.0,0.00028,2]
[310981505,1704839439840,-155.0,0.00028,2]
[310981507,1704839439849,-506.50479394,0.00028,2]
[310981509,1704839439858,-157.76589739,0.0002828,2]
[310981511,1704839439867,-1982.4602042,0.00029,2]
[310981512,1704839439876,-8878.11747363,0.00029,2]
[310981514,1704839439885,-22063.9405132,0.000295,30]
[310981516,1704839439894,-3312.33970056,0.0003,4]
[310981518,1704839439904,-1200.0,0.0003,4]
[310981520,1704839439913,-304.92883245,0.0003,2]
[310981522,1704839439923,-282.50801309,0.0003,3]
[310981524,1704839439932,-155.05892239,0.0003,4]
[310981527,1704839439944,-5000.0,0.0003,3]
[310981529,1704839439954,-243.70040844,0.0003,4]
[310981531,1704839439965,-155.0,0.0003,4]
[310981534,1704839439975,-463.25005188,0.0003,4]
[310981537,1704839439985,-1451.00632772,0.00030554,2]
[310981540,1704839439995,-542.94503565,0.00030554,2]
[310981543,1704839440005,-233.8244335,0.00030998,4]
[310981545,1704839440014,-2829.6360846,0.00030998,4]
[310981547,1704839440024,-176.65203236,0.00030998,2]
[310981549,1704839440033,-819.10452591,0.000318,3]
[310981551,1704839440042,-224.024387,0.00032358,4]
[310981553,1704839440052,-5000.0,0.00032586,2]
[310981555,1704839440062,-150.0,0.00032869,2]
[310981558,1704839440073,-1784.52892854,0.00033018,4]
[310981561,1704839440083,-3243.64238297,0.00033018,2]
[310981564,1704839440092,-640.42681025,0.00033018,4]
[310981567,1704839440102,-309.64391027,0.00033018,4]
[310981570,1704839440111,-16600.72583515,0.00033018,4]
[310981573,1704839440121,-6971.6600529,0.00033019,4]
[310981576,1704839440130,-17918.60725692,0.0003302,4]
[310981580,1704839440144,-2668.90368003,0.0003302,4]
[310981584,1704839440156,-3002.16183,0.0003302,4]
[310981587,1704839440167,-437.90229,0.0003302,4]
[310981590,1704839440178,-1284.3183491,0.0003302,4]
[310981593,1704839440190,-2326.66091167,0.0003302,4]
[310981718,1704839441443,-3818.48,0.00027397,3]
[310981720,1704839441453,-10472.94613803,0.0003302,4]
[310981726,1704839441508,-11888.49954425,0.0003302,4]
[310981728,1704839441518,-12996.25536464,0.0003305,3]
[310981730,1704839441527,-19437.19069229,0.00033074,3]
[310981732,1704839441536,-1548.92954124,0.00033084,4]
[310981737,1704839441578,-301.87875,0.00033084,4]
[310981739,1704839441589,-3513.15423716,0.00033084,4]
[310981741,1704839441599,-150.98490151,0.0003331,7]
[310981743,1704839441608,-154.41457915,0.00033772,7]
[310981745,1704839441618,-600.79287656,0.0003379,2]
[310981747,1704839441630,-1288.38414466,0.0003379,2]
[310981749,1704839441639,-339.85854143,0.00033831,5]
[310981751,1704839441648,-150.98490151,0.0003399,4]
[310981753,1704839441658,-1000.0,0.00034,7]
[310981755,1704839441668,-152.38900235,0.00034156,7]
[310981757,1704839441677,-4000.0,0.00034521,2]
[310981758,1704839441687,-162.39315149,0.00034627,7]
[310981760,1704839441697,-162.3931515,0.00034632,7]
[310981762,1704839441706,-150.98490151,0.00034683,2]
[310981764,1704839441717,-12220.9100946,0.000349,5]
[310981766,1704839441726,-591.11085398,0.00035,2]
[310981768,1704839441735,-7803.1787706,0.00035,4]
[310981770,1704839441744,-236.51854,0.00035,7]
[310981772,1704839441754,-1155.62245496,0.00035,4]
[310981858,1704839444040,-2436.81959951,0.00035,4]
[310981859,1704839444053,-3210.51801787,0.00035,4]
[310981860,1704839444062,-7703.04390698,0.00035,4]
[310981861,1704839444073,-3642.8363938,0.00035,4]
[310981862,1704839444084,-4038.02774753,0.00035,4]
[310981863,1704839444102,-326.06892779,0.00035,4]
[310982117,1704839447754,-357.1441243,0.00023288,2]
[310982119,1704839447764,-42.83216094,0.00023288,2]
[310982789,1704839463098,-5000.0,0.00016891,2]
[310982790,1704839463257,-3742.16462345,0.00016891,2]
[310982791,1704839464496,-5000.0,0.00017413,2]
[310982792,1704839464750,-5000.0,0.00017413,2]
[310982793,1704839464847,-5000.0,0.00017413,2]
[310982794,1704839465024,-5000.0,0.00017413,2]
[310982795,1704839465131,-3370.0,0.00017413,2]
[310982796,1704839572544,-5000.0,0.00017413,2]
[310982797,1704839572680,-5000.0,0.00017413,2]
[310982798,1704839572797,-5000.0,0.00017413,2]
[310982799,1704839572894,-5000.0,0.00017413,2]
[310982800,1704839573006,-5000.0,0.00017413,2]
[310982801,1704839573155,-5000.0,0.00017413,2]
[310982802,1704839573292,-3931.18078957,0.00017413,2]
[310982803,1704839582178,-4900.0,0.00016891,2]
[310982804,1704839582317,-100.0,0.00016891,2]
[310982805,1704839644926,-5000.0,0.00017192,2]
[310982806,1704839645133,-5000.0,0.00017192,2]
[310982807,1704839645225,-5000.0,0.00017192,2]
[310982808,1704839645353,-5000.0,0.00017192,2]
[310982809,1704839645445,-4900.0,0.00017192,2]
[310982810,1704839649180,-4691.58757472,0.00017191,2]
[310982811,1704839649314,-95.7466852,0.00017191,2]
[310982812,1704839650118,586.93974545,0.00017191,2]
[310982813,1704839650157,1221.1925829,0.00016891,2]
[310982814,1704839652709,-514.99582202,0.00017191,2]
[310982815,1704839652875,-10.51011882,0.00017191,2]
[310982816,1704839756049,-190.42389936,0.00017191,2]
[310982817,1704839756079,-1941.33504133,0.00017191,2]
[310982818,1704839756190,-43.5052845,0.00017191,2]
[310982819,1704839756986,155.0,0.0001719,3]
[310982820,1704839758007,242.53908956,0.0001719,2]
[310982821,1704839758884,-292.13938338,0.00017191,2]
[310982822,1704839759090,-5.96202823,0.00017191,2]
[310982823,1704839760986,155.0,0.0001719,2]
[310982824,1704839761133,131.17735515,0.0001719,2]
[310982825,1704839761161,292.13938338,0.0001719,2]
[310982826,1704839761500,-867.41143678,0.0001719,2]
[310982827,1704839773295,-155.0,0.0001719,2]
[310982828,1704839773332,-175.62885341,0.00017191,2]
[310982829,1704839773462,-6.74752762,0.00017191,2]
[310982830,1704839773498,155.0,0.00016356,3]
[310982831,1704839786285,-564.4124192,0.0001708,2]
[310982832,1704839786450,-11.5186208,0.0001708,2]
[310982833,1704839795881,-672.68403925,0.00016353,2]
[310982834,1704839796014,-13.7282457,0.00016353,2]
[310982835,1704839796993,451.65400802,0.00016353,2]
[310982836,1704839802111,-3662.35589677,0.00016352,2]
[310982837,1704839802344,-74.74195708,0.00016352,2]
[310982838,1704839808320,-5000.0,0.00016351,2]
[310982839,1704839808445,-3662.35589677,0.00016351,2]
[310982840,1704839808514,-5000.0,0.00016351,2]
[310982841,1704839808633,-5000.0,0.00016351,2]
[310982842,1704839808741,-2194.215731,0.00016351,2]
[310982843,1704839808769,-2805.784269,0.00016351,2]
[310982844,1704839808856,-5000.0,0.00016351,2]
[310982845,1704839809002,-5000.0,0.00016351,2]
[310982846,1704839809093,-5000.0,0.00016351,2]
[310982847,1704839809175,-5000.0,0.00016351,2]
[310982848,1704839809282,-1000.80372541,0.00016351,2]
[310982849,1704839809312,-360.64707367,0.00016352,2]
[310982850,1704839809510,-155.0,0.00016353,2]
[310982851,1704839819433,280.0,0.00021532,7]
[310982852,1704839822176,-164.88125202,0.00016353,2]